[Event "Late-Titled-Tuesday-Blitz-May-07-2024"]
[Site "Chess.com"]
[Date "2024.05.07"]
[Round "6"]
[White "Felix-Rose"]
[Black "szachmistrz2500"]
[Result "0-1"]
[WhiteElo "2228"]
[BlackElo "2469"]
[TimeControl "180+1"]
[EndTime "15:05:38 PDT"]
[Termination "szachmistrz2500 won on time"]

1. e4 {[%clk 0:01:26.9]} 1... c5 {[%clk 0:02:58]} 2. Nf3 {[%clk 0:01:26.7]} 2...
d6 {[%clk 0:02:58.1]} 3. d4 {[%clk 0:01:27.4]} 3... cxd4 {[%clk 0:02:58.5]} 4.
Nxd4 {[%clk 0:01:28.3]} 4... Nf6 {[%clk 0:02:59]} 5. Nc3 {[%clk 0:01:28.9]} 5...
a6 {[%clk 0:02:59.6]} 6. Be3 {[%clk 0:01:29.3]} 6... e5 {[%clk 0:02:59.5]} 7.
Nb3 {[%clk 0:01:29.6]} 7... Be7 {[%clk 0:02:59.9]} 8. f3 {[%clk 0:01:30.3]} 8...
Be6 {[%clk 0:03:00.1]} 9. Qd2 {[%clk 0:01:30.9]} 9... Nbd7 {[%clk 0:03:00.4]}
10. O-O-O {[%clk 0:01:31.6]} 10... O-O {[%clk 0:02:58.8]} 11. g4 {[%clk
0:01:32.2]} 11... b5 {[%clk 0:02:59.2]} 12. g5 {[%clk 0:01:32.9]} 12... b4
{[%clk 0:02:59.4]} 13. gxf6 {[%clk 0:01:33.3]} 13... bxc3 {[%clk 0:02:59.4]} 14.
Qxc3 {[%clk 0:01:34.2]} 14... Nxf6 {[%clk 0:02:54.7]} 15. Na5 {[%clk 0:01:34.2]}
15... Qc8 {[%clk 0:02:40.6]} 16. Nc6 {[%clk 0:01:34.1]} 16... Bd8 {[%clk
0:02:33.1]} 17. Nxd8 {[%clk 0:01:32.7]} 17... Qxd8 {[%clk 0:02:31.5]} 18. Rd2
{[%clk 0:01:13.8]} 18... Qe7 {[%clk 0:02:25.4]} 19. Qa3 {[%clk 0:01:11.1]} 19...
Rfd8 {[%clk 0:02:23.7]} 20. Be2 {[%clk 0:01:10.4]} 20... Ne8 {[%clk 0:02:19.2]}
21. f4 {[%clk 0:01:02.6]} 21... Rdc8 {[%clk 0:01:59.3]} 22. fxe5 {[%clk
0:00:56.5]} 22... Rc6 {[%clk 0:01:51.7]} 23. exd6 {[%clk 0:00:52.3]} 23... Nxd6
{[%clk 0:01:47.1]} 24. Bc5 {[%clk 0:00:39]} 24... Rac8 {[%clk 0:01:35.8]} 25.
Bxd6 {[%clk 0:00:35.2]} 25... Qg5 {[%clk 0:01:36.3]} 26. Bd3 {[%clk 0:00:18.6]}
26... Bc4 {[%clk 0:01:28.3]} 27. Rd1 {[%clk 0:00:04.7]} 27... Bb5 {[%clk
0:01:16.8]} 28. Kb1 {[%clk 0:00:02.9]} 28... h6 {[%clk 0:01:10.3]} 29. Bxb5
{[%clk 0:00:02.1]} 29... axb5 {[%clk 0:01:11.2]} 30. Qd3 {[%clk 0:00:01.3]}
30... Rd8 {[%clk 0:01:08.7]} 31. e5 {[%clk 0:00:01.5]} 31... Rc4 {[%clk
0:01:08.2]} 32. b3 {[%clk 0:00:01.1]} 32... Rh4 {[%clk 0:01:07.5]} 0-1

[Event "Late-Titled-Tuesday-Blitz-May-07-2024"]
[Site "Chess.com"]
[Date "2024.05.07"]
[Round "6"]
[White "Chessbard1972"]
[Black "VictorFcQNK"]
[Result "1-0"]
[WhiteElo "2332"]
[BlackElo "2100"]
[TimeControl "180+1"]
[EndTime "15:05:53 PDT"]
[Termination "Chessbard1972 won on time"]

1. e4 {[%clk 0:03:00.9]} 1... e6 {[%clk 0:02:58.1]} 2. Nf3 {[%clk 0:02:57.1]}
2... d5 {[%clk 0:02:57.2]} 3. e5 {[%clk 0:02:57.5]} 3... c5 {[%clk 0:02:55.6]}
4. g3 {[%clk 0:02:56.3]} 4... Nc6 {[%clk 0:02:55.4]} 5. Bg2 {[%clk 0:02:56.5]}
5... Nh6 {[%clk 0:02:44]} 6. O-O {[%clk 0:02:54.7]} 6... b6 {[%clk 0:02:18.5]}
7. d3 {[%clk 0:02:53.7]} 7... Nf5 {[%clk 0:02:10.5]} 8. Re1 {[%clk 0:02:51.6]}
8... Be7 {[%clk 0:02:08.1]} 9. c3 {[%clk 0:02:51.2]} 9... O-O {[%clk 0:02:03.8]}
10. h4 {[%clk 0:02:50.2]} 10... Bb7 {[%clk 0:01:56.9]} 11. Bf4 {[%clk 0:02:37]}
11... Rc8 {[%clk 0:01:54.4]} 12. Nbd2 {[%clk 0:02:35.4]} 12... a6 {[%clk
0:01:51.7]} 13. Nf1 {[%clk 0:02:33.9]} 13... b5 {[%clk 0:01:48.9]} 14. Qe2
{[%clk 0:02:33.7]} 14... d4 {[%clk 0:01:42]} 15. Rad1 {[%clk 0:02:23.8]} 15...
Qa5 {[%clk 0:01:22.3]} 16. c4 {[%clk 0:02:02.9]} 16... bxc4 {[%clk 0:01:15.5]}
17. dxc4 {[%clk 0:02:02.4]} 17... Qxa2 {[%clk 0:01:10.9]} 18. Ra1 {[%clk
0:01:46.7]} 18... Qb3 {[%clk 0:01:07.6]} 19. N1d2 {[%clk 0:01:43.1]} 19... Qb6
{[%clk 0:00:46.8]} 20. Ne4 {[%clk 0:01:41.1]} 20... Nb4 {[%clk 0:00:36.8]} 21.
h5 {[%clk 0:01:30.4]} 21... d3 {[%clk 0:00:32]} 22. Qd2 {[%clk 0:01:27.2]} 22...
Nc2 {[%clk 0:00:31]} 23. h6 {[%clk 0:01:14.2]} 23... Nxa1 {[%clk 0:00:19.9]} 24.
hxg7 {[%clk 0:01:12.2]} 24... Rfd8 {[%clk 0:00:19.1]} 25. g4 {[%clk 0:01:00.6]}
25... Nc2 {[%clk 0:00:17]} 26. gxf5 {[%clk 0:00:57]} 26... Nxe1 {[%clk
0:00:16.4]} 27. Nxe1 {[%clk 0:00:56.7]} 27... Bxe4 {[%clk 0:00:15.6]} 28. f6
{[%clk 0:00:54.1]} 28... Rd7 {[%clk 0:00:13.2]} 29. Bxe4 {[%clk 0:00:52.2]}
29... Bd8 {[%clk 0:00:12.3]} 30. Nxd3 {[%clk 0:00:46.2]} 30... Bc7 {[%clk
0:00:11.1]} 31. Qe2 {[%clk 0:00:42.7]} 31... Rdd8 {[%clk 0:00:08.5]} 32. Bxh7+
{[%clk 0:00:41.4]} 1-0

[Event "Late-Titled-Tuesday-Blitz-May-07-2024"]
[Site "Chess.com"]
[Date "2024.05.07"]
[Round "6"]
[White "Stanbad1"]
[Black "Denisenko_Denis"]
[Result "0-1"]
[WhiteElo "2614"]
[BlackElo "2416"]
[TimeControl "180+1"]
[EndTime "15:06:07 PDT"]
[Termination "Denisenko_Denis won by resignation"]

1. d4 {[%clk 0:03:00.5]} 1... d5 {[%clk 0:02:58.5]} 2. c4 {[%clk 0:03:00.2]}
2... c6 {[%clk 0:02:58.6]} 3. cxd5 {[%clk 0:03:00]} 3... cxd5 {[%clk 0:02:58.6]}
4. Bf4 {[%clk 0:03:00.8]} 4... Nf6 {[%clk 0:02:59.1]} 5. e3 {[%clk 0:03:00.8]}
5... Nc6 {[%clk 0:02:59.3]} 6. Nc3 {[%clk 0:03:01.1]} 6... Bg4 {[%clk
0:02:58.7]} 7. Qb3 {[%clk 0:02:59.5]} 7... Na5 {[%clk 0:02:58.5]} 8. Qa4+ {[%clk
0:02:55.1]} 8... Bd7 {[%clk 0:02:59.1]} 9. Bb5 {[%clk 0:02:53.6]} 9... e6 {[%clk
0:02:54.6]} 10. Nf3 {[%clk 0:02:51.2]} 10... a6 {[%clk 0:02:52.1]} 11. Bxd7+
{[%clk 0:02:50.9]} 11... Nxd7 {[%clk 0:02:52.5]} 12. Ne5 {[%clk 0:02:51.1]}
12... b5 {[%clk 0:02:47.6]} 13. Qc2 {[%clk 0:02:50.4]} 13... Nxe5 {[%clk
0:02:46.9]} 14. Bxe5 {[%clk 0:02:49]} 14... Rc8 {[%clk 0:02:46.4]} 15. Qd3
{[%clk 0:02:46.6]} 15... Nc4 {[%clk 0:02:46]} 16. Rb1 {[%clk 0:02:44.9]} 16...
Bb4 {[%clk 0:02:39.1]} 17. O-O {[%clk 0:02:43.8]} 17... O-O {[%clk 0:02:37.9]}
18. Rfc1 {[%clk 0:02:33.9]} 18... Qd7 {[%clk 0:02:30.1]} 19. Bg3 {[%clk
0:02:32.5]} 19... Rc6 {[%clk 0:02:28.9]} 20. Ne2 {[%clk 0:02:30.1]} 20... Rfc8
{[%clk 0:02:23.7]} 21. h3 {[%clk 0:02:28.7]} 21... h6 {[%clk 0:02:18.6]} 22. b3
{[%clk 0:02:27.6]} 22... Nd2 {[%clk 0:02:10]} 23. Rxc6 {[%clk 0:02:26.6]} 23...
Rxc6 {[%clk 0:02:08.6]} 24. Rd1 {[%clk 0:02:27.1]} 24... Ne4 {[%clk 0:02:07.6]}
25. Be5 {[%clk 0:02:25]} 25... Qc8 {[%clk 0:02:03]} 26. a4 {[%clk 0:02:14.1]}
26... Nc3 {[%clk 0:02:00.8]} 27. Nxc3 {[%clk 0:02:12.2]} 27... Rxc3 {[%clk
0:02:00.2]} 28. Qe2 {[%clk 0:02:12.6]} 28... Rxb3 {[%clk 0:01:47.5]} 29. axb5
{[%clk 0:02:12]} 29... axb5 {[%clk 0:01:47.2]} 30. Qxb5 {[%clk 0:02:10.6]} 30...
Qc2 {[%clk 0:01:43.6]} 31. Qe8+ {[%clk 0:02:10]} 31... Bf8 {[%clk 0:01:43.2]}
32. Ra1 {[%clk 0:02:04.8]} 32... Rb1+ {[%clk 0:01:31.8]} 33. Rxb1 {[%clk
0:02:04.7]} 33... Qxb1+ {[%clk 0:01:32.7]} 34. Kh2 {[%clk 0:02:05.1]} 34... Qb6
{[%clk 0:01:25.6]} 35. Qc8 {[%clk 0:02:04.4]} 35... f6 {[%clk 0:01:17.3]} 36.
Bc7 {[%clk 0:02:03.2]} 36... Qc6 {[%clk 0:01:11.8]} 37. Qd8 {[%clk 0:02:02.9]}
37... Kf7 {[%clk 0:01:06.8]} 38. Bg3 {[%clk 0:01:58.5]} 38... Qe8 {[%clk
0:01:03.1]} 39. Qc7+ {[%clk 0:01:58.3]} 39... Qe7 {[%clk 0:01:02.9]} 40. Qf4
{[%clk 0:01:58.2]} 40... Qd7 {[%clk 0:01:01.4]} 41. Qg4 {[%clk 0:01:56.6]} 41...
Bd6 {[%clk 0:00:59.5]} 42. h4 {[%clk 0:01:54.7]} 42... Bxg3+ {[%clk 0:00:58.3]}
43. Qxg3 {[%clk 0:01:55.3]} 43... Qe7 {[%clk 0:00:52.2]} 44. Qb8 {[%clk
0:01:52.2]} 44... Kg6 {[%clk 0:00:45.7]} 45. g3 {[%clk 0:01:52]} 45... e5 {[%clk
0:00:42]} 46. Qb1+ {[%clk 0:01:46.4]} 46... Kf7 {[%clk 0:00:38.6]} 47. Qa2
{[%clk 0:01:46.4]} 47... Qe6 {[%clk 0:00:36.8]} 48. Qa7+ {[%clk 0:01:46.1]}
48... Kg6 {[%clk 0:00:36.4]} 49. Kg2 {[%clk 0:01:44.6]} 49... exd4 {[%clk
0:00:33.5]} 50. Qxd4 {[%clk 0:01:43.7]} 50... Qe4+ {[%clk 0:00:32.8]} 51. f3
{[%clk 0:01:37.6]} 51... Qxd4 {[%clk 0:00:32.4]} 52. exd4 {[%clk 0:01:38.5]}
52... Kf5 {[%clk 0:00:31.2]} 53. Kf2 {[%clk 0:01:38.6]} 53... h5 {[%clk
0:00:31.2]} 54. Ke3 {[%clk 0:01:37.8]} 54... g5 {[%clk 0:00:29.8]} 55. Ke2
{[%clk 0:01:10.5]} 55... gxh4 {[%clk 0:00:26.7]} 56. gxh4 {[%clk 0:01:11.4]}
56... Kf4 {[%clk 0:00:27]} 57. Kf2 {[%clk 0:01:11.9]} 57... f5 {[%clk
0:00:27.4]} 58. Ke2 {[%clk 0:01:09.8]} 58... Kg3 {[%clk 0:00:27.3]} 59. Ke3
{[%clk 0:01:10.5]} 59... f4+ {[%clk 0:00:24.5]} 60. Ke2 {[%clk 0:01:10.6]} 60...
Kxh4 {[%clk 0:00:24.4]} 61. Kf2 {[%clk 0:01:11]} 61... Kh3 {[%clk 0:00:24.8]}
62. Kg1 {[%clk 0:01:11.9]} 62... Kg3 {[%clk 0:00:25]} 0-1

[Event "Late-Titled-Tuesday-Blitz-May-07-2024"]
[Site "Chess.com"]
[Date "2024.05.07"]
[Round "6"]
[White "BabageldiAnnaberdiyev"]
[Black "ameetghasi100"]
[Result "0-1"]
[WhiteElo "2571"]
[BlackElo "2801"]
[TimeControl "180+1"]
[EndTime "15:06:09 PDT"]
[Termination "ameetghasi100 won on time"]

1. e4 {[%clk 0:03:00.9]} 1... g6 {[%clk 0:03:00.9]} 2. d4 {[%clk 0:02:59.6]}
2... Bg7 {[%clk 0:03:01.8]} 3. Nc3 {[%clk 0:02:59.8]} 3... d6 {[%clk 0:03:00.9]}
4. f4 {[%clk 0:02:59]} 4... Nf6 {[%clk 0:03:00.6]} 5. Nf3 {[%clk 0:02:58.8]}
5... O-O {[%clk 0:03:01.1]} 6. e5 {[%clk 0:02:59.2]} 6... Ne8 {[%clk 0:03:00.7]}
7. h4 {[%clk 0:02:58.7]} 7... c5 {[%clk 0:03:01]} 8. h5 {[%clk 0:02:59.2]} 8...
cxd4 {[%clk 0:03:01.2]} 9. Qxd4 {[%clk 0:02:59.6]} 9... Nc6 {[%clk 0:03:00.9]}
10. Qf2 {[%clk 0:03:00]} 10... dxe5 {[%clk 0:03:01.1]} 11. hxg6 {[%clk
0:03:00.2]} 11... fxg6 {[%clk 0:03:02]} 12. Bc4+ {[%clk 0:02:58.2]} 12... e6
{[%clk 0:03:01.1]} 13. Rxh7 {[%clk 0:02:46.5]} 13... Kxh7 {[%clk 0:02:45.2]} 14.
Qg3 {[%clk 0:02:45.1]} 14... Nd4 {[%clk 0:02:30.9]} 15. Qh3+ {[%clk 0:01:50.8]}
15... Kg8 {[%clk 0:02:29.1]} 16. Ng5 {[%clk 0:01:49.3]} 16... Nf6 {[%clk
0:02:29.3]} 17. Bd3 {[%clk 0:01:47.3]} 17... Nf5 {[%clk 0:01:30.8]} 18. g4
{[%clk 0:01:37.5]} 18... Nh6 {[%clk 0:01:26.9]} 19. fxe5 {[%clk 0:01:26.3]}
19... Nfxg4 {[%clk 0:01:26.3]} 20. Nce4 {[%clk 0:01:05.1]} 20... Qd4 {[%clk
0:01:20.8]} 21. Qh1 {[%clk 0:00:54.3]} 21... Qxe5 {[%clk 0:01:10.5]} 22. Bd2
{[%clk 0:00:52.7]} 22... Nf2 {[%clk 0:01:07.8]} 23. Qh4 {[%clk 0:00:44.3]} 23...
Nxe4 {[%clk 0:00:43.6]} 24. Bxe4 {[%clk 0:00:45.2]} 24... Qxb2 {[%clk 0:00:41]}
25. Rd1 {[%clk 0:00:44.3]} 25... Qd4 {[%clk 0:00:40.7]} 26. Qh2 {[%clk
0:00:34.6]} 26... Qe5 {[%clk 0:00:35.4]} 27. Qh4 {[%clk 0:00:27.1]} 27... Bd7
{[%clk 0:00:33.9]} 28. Bb4 {[%clk 0:00:05.3]} 28... Bc6 {[%clk 0:00:34.2]} 29.
Bxf8 {[%clk 0:00:03.2]} 29... Qc3+ {[%clk 0:00:32.1]} 30. Rd2 {[%clk 0:00:02.6]}
30... Rxf8 {[%clk 0:00:32.3]} 0-1

[Event "Late-Titled-Tuesday-Blitz-May-07-2024"]
[Site "Chess.com"]
[Date "2024.05.07"]
[Round "6"]
[White "Oleksandr_Bortnyk"]
[Black "klimkoj"]
[Result "1-0"]
[WhiteElo "3080"]
[BlackElo "2957"]
[TimeControl "180+1"]
[EndTime "15:06:11 PDT"]
[Termination "Oleksandr_Bortnyk won by resignation"]

1. e4 {[%clk 0:03:00.9]} 1... c5 {[%clk 0:03:00]} 2. Be2 {[%clk 0:02:58.8]} 2...
d5 {[%clk 0:02:54.1]} 3. d3 {[%clk 0:02:58.5]} 3... dxe4 {[%clk 0:02:53.4]} 4.
dxe4 {[%clk 0:02:59.4]} 4... Qxd1+ {[%clk 0:02:54]} 5. Bxd1 {[%clk 0:03:00.3]}
5... Nc6 {[%clk 0:02:54.7]} 6. c3 {[%clk 0:03:00.5]} 6... Nf6 {[%clk 0:02:54.8]}
7. Bc2 {[%clk 0:02:59.6]} 7... g6 {[%clk 0:02:53.3]} 8. f4 {[%clk 0:02:59.3]}
8... Bg7 {[%clk 0:02:48.3]} 9. Nf3 {[%clk 0:02:59.4]} 9... Bg4 {[%clk 0:02:48]}
10. e5 {[%clk 0:02:59.1]} 10... Nd5 {[%clk 0:02:45]} 11. Be4 {[%clk 0:02:58.6]}
11... Bxf3 {[%clk 0:02:41.3]} 12. Bxf3 {[%clk 0:02:58]} 12... O-O-O {[%clk
0:02:38.5]} 13. O-O {[%clk 0:02:56.8]} 13... f5 {[%clk 0:02:33.6]} 14. Na3
{[%clk 0:02:50.3]} 14... Nc7 {[%clk 0:02:24.1]} 15. Bxc6 {[%clk 0:02:42.6]}
15... bxc6 {[%clk 0:02:25]} 16. Be3 {[%clk 0:02:43.2]} 16... Ne6 {[%clk
0:02:22.8]} 17. Nc4 {[%clk 0:02:43.1]} 17... h6 {[%clk 0:02:16.5]} 18. h4 {[%clk
0:02:42.3]} 18... Kc7 {[%clk 0:02:14.8]} 19. a4 {[%clk 0:02:41.6]} 19... Rd3
{[%clk 0:01:58.6]} 20. Kf2 {[%clk 0:02:32.3]} 20... g5 {[%clk 0:01:45.4]} 21.
Ke2 {[%clk 0:02:27.1]} 21... Rd5 {[%clk 0:01:34.7]} 22. g3 {[%clk 0:02:15.3]}
22... gxh4 {[%clk 0:01:15.5]} 23. gxh4 {[%clk 0:02:15.6]} 23... h5 {[%clk
0:01:16.4]} 24. Rg1 {[%clk 0:02:11.5]} 24... Bh6 {[%clk 0:01:16.6]} 25. Raf1
{[%clk 0:02:08.3]} 25... Rdd8 {[%clk 0:01:15.9]} 26. Rg6 {[%clk 0:02:04.3]}
26... Nf8 {[%clk 0:01:15.6]} 27. Rg3 {[%clk 0:01:35.2]} 27... Ne6 {[%clk
0:01:15]} 28. Rg6 {[%clk 0:01:15.8]} 28... Nf8 {[%clk 0:01:14.6]} 29. Rxh6
{[%clk 0:01:15.2]} 29... Rxh6 {[%clk 0:01:13.8]} 30. Bxc5 {[%clk 0:01:16.1]}
30... Rh7 {[%clk 0:01:06]} 31. Bxa7 {[%clk 0:01:15.7]} 31... Ra8 {[%clk
0:00:56]} 32. Bb6+ {[%clk 0:01:15.3]} 32... Kb7 {[%clk 0:00:56.7]} 33. a5 {[%clk
0:01:13.9]} 33... Rg7 {[%clk 0:00:53.2]} 34. Kf3 {[%clk 0:01:04.1]} 34... Ne6
{[%clk 0:00:45]} 35. Ne3 {[%clk 0:00:48.6]} 35... Rg4 {[%clk 0:00:39.9]} 36.
Nxg4 {[%clk 0:00:45.1]} 36... hxg4+ {[%clk 0:00:36.5]} 37. Ke3 {[%clk
0:00:45.3]} 37... Rh8 {[%clk 0:00:23.3]} 38. Rd1 {[%clk 0:00:45.3]} 38... Rxh4
{[%clk 0:00:21]} 39. Rd7+ {[%clk 0:00:44.8]} 39... Ka6 {[%clk 0:00:20.3]} 40. c4
{[%clk 0:00:44.8]} 40... Rh3+ {[%clk 0:00:18.4]} 41. Kf2 {[%clk 0:00:37.1]}
41... g3+ {[%clk 0:00:16.4]} 42. Kg1 {[%clk 0:00:36.3]} 1-0

[Event "Late-Titled-Tuesday-Blitz-May-07-2024"]
[Site "Chess.com"]
[Date "2024.05.07"]
[Round "6"]
[White "Adar_07"]
[Black "imdvb6307"]
[Result "1-0"]
[WhiteElo "2725"]
[BlackElo "2503"]
[TimeControl "180+1"]
[EndTime "15:06:11 PDT"]
[Termination "Adar_07 won by resignation"]

1. d3 {[%clk 0:03:00.9]} 1... d5 {[%clk 0:02:53.3]} 2. Nd2 {[%clk 0:03:01.8]}
2... e5 {[%clk 0:02:48.8]} 3. e4 {[%clk 0:03:01.3]} 3... c6 {[%clk 0:02:48.2]}
4. Ngf3 {[%clk 0:03:01]} 4... Bd6 {[%clk 0:02:47.9]} 5. c3 {[%clk 0:02:59.7]}
5... Ne7 {[%clk 0:02:45.5]} 6. g3 {[%clk 0:02:59.5]} 6... O-O {[%clk 0:02:44.9]}
7. Bg2 {[%clk 0:02:59.5]} 7... Bg4 {[%clk 0:02:35.9]} 8. O-O {[%clk 0:02:55.9]}
8... Nd7 {[%clk 0:02:34.9]} 9. Re1 {[%clk 0:02:53.2]} 9... f6 {[%clk 0:02:27.6]}
10. b4 {[%clk 0:02:47.3]} 10... a5 {[%clk 0:02:24.9]} 11. Rb1 {[%clk 0:02:40]}
11... axb4 {[%clk 0:02:24.5]} 12. cxb4 {[%clk 0:02:40.3]} 12... d4 {[%clk
0:02:11.4]} 13. b5 {[%clk 0:02:39.4]} 13... Nc5 {[%clk 0:02:01.3]} 14. bxc6
{[%clk 0:02:29.7]} 14... bxc6 {[%clk 0:01:59]} 15. Nb3 {[%clk 0:02:23.2]} 15...
Na4 {[%clk 0:01:58.9]} 16. Bd2 {[%clk 0:02:20.9]} 16... c5 {[%clk 0:01:49.2]}
17. Qc2 {[%clk 0:02:18.6]} 17... Nc6 {[%clk 0:01:46.1]} 18. Rec1 {[%clk
0:02:11.1]} 18... Be6 {[%clk 0:01:42.2]} 19. Nh4 {[%clk 0:02:09.6]} 19... g6
{[%clk 0:01:41.5]} 20. Rf1 {[%clk 0:02:07.7]} 20... Nb4 {[%clk 0:01:29.5]} 21.
Bxb4 {[%clk 0:02:06.6]} 21... cxb4 {[%clk 0:01:29.8]} 22. f4 {[%clk 0:02:07.1]}
22... Nc3 {[%clk 0:01:29.6]} 23. Rb2 {[%clk 0:02:05.4]} 23... exf4 {[%clk
0:01:21.2]} 24. gxf4 {[%clk 0:02:06.3]} 24... f5 {[%clk 0:01:21.4]} 25. exf5
{[%clk 0:02:05.3]} 25... Qxh4 {[%clk 0:01:17.2]} 26. fxe6 {[%clk 0:02:03.4]}
26... Rac8 {[%clk 0:01:08.6]} 27. Qf2 {[%clk 0:02:00.4]} 27... Rxf4 {[%clk
0:01:01.6]} 28. Qxh4 {[%clk 0:01:58.9]} 28... Rxh4 {[%clk 0:01:01.8]} 29. h3
{[%clk 0:01:59.6]} 29... Bf4 {[%clk 0:00:55.5]} 30. Kh1 {[%clk 0:01:56.1]} 30...
Be3 {[%clk 0:00:51.4]} 31. Na5 {[%clk 0:01:52.1]} 31... Re8 {[%clk 0:00:34.9]}
32. Rxb4 {[%clk 0:01:44.1]} 32... Rh5 {[%clk 0:00:32]} 33. Nc6 {[%clk
0:01:41.4]} 33... Rxe6 {[%clk 0:00:30.6]} 34. Nxd4 {[%clk 0:01:34]} 34... Bxd4
{[%clk 0:00:20.4]} 35. Rxd4 {[%clk 0:01:34.9]} 35... Kg7 {[%clk 0:00:19.2]} 36.
Rd7+ {[%clk 0:01:32.4]} 36... Kh6 {[%clk 0:00:19]} 37. Rff7 {[%clk 0:01:32.5]}
37... Kg5 {[%clk 0:00:19.1]} 38. d4 {[%clk 0:01:26.6]} 38... Ne2 {[%clk
0:00:18.7]} 39. d5 {[%clk 0:01:23.9]} 39... Re3 {[%clk 0:00:17.1]} 40. Rde7
{[%clk 0:01:22.5]} 40... Rxe7 {[%clk 0:00:15.9]} 41. Rxe7 {[%clk 0:01:23]} 41...
Nf4 {[%clk 0:00:14.9]} 42. d6 {[%clk 0:01:19.2]} 42... Kf6 {[%clk 0:00:14]} 43.
Re8 {[%clk 0:01:07.6]} 43... Nxg2 {[%clk 0:00:13.5]} 44. d7 {[%clk 0:01:07.9]}
44... Rd5 {[%clk 0:00:12.1]} 45. d8=Q+ {[%clk 0:01:08.2]} 45... Rxd8 {[%clk
0:00:12.3]} 46. Rxd8 {[%clk 0:01:09.1]} 46... Nf4 {[%clk 0:00:12.2]} 47. a4
{[%clk 0:01:09.6]} 47... Nxh3 {[%clk 0:00:12.1]} 48. a5 {[%clk 0:01:10.1]} 48...
Nf2+ {[%clk 0:00:10.1]} 49. Kg2 {[%clk 0:01:10]} 49... Ng4 {[%clk 0:00:09.6]}
50. a6 {[%clk 0:01:08.9]} 50... Ke7 {[%clk 0:00:09.5]} 51. Rh8 {[%clk
0:01:07.7]} 1-0

[Event "Late-Titled-Tuesday-Blitz-May-07-2024"]
[Site "Chess.com"]
[Date "2024.05.07"]
[Round "6"]
[White "FredddieCroderg"]
[Black "Statham_01"]
[Result "0-1"]
[WhiteElo "2411"]
[BlackElo "2633"]
[TimeControl "180+1"]
[EndTime "15:06:13 PDT"]
[Termination "Statham_01 won by resignation"]

1. e4 {[%clk 0:03:00.9]} 1... e5 {[%clk 0:02:58.4]} 2. Qf3 {[%clk 0:03:00.4]}
2... Nc6 {[%clk 0:02:57.3]} 3. Bc4 {[%clk 0:03:00.4]} 3... Nf6 {[%clk
0:02:55.5]} 4. d3 {[%clk 0:03:00.3]} 4... Nd4 {[%clk 0:02:55.5]} 5. Qd1 {[%clk
0:02:59.9]} 5... d5 {[%clk 0:02:55.2]} 6. Bb3 {[%clk 0:02:59.7]} 6... Bg4 {[%clk
0:02:54.6]} 7. f3 {[%clk 0:02:59]} 7... Be6 {[%clk 0:02:54.2]} 8. Nc3 {[%clk
0:02:56.7]} 8... dxe4 {[%clk 0:02:50.4]} 9. fxe4 {[%clk 0:02:53.4]} 9... Bxb3
{[%clk 0:02:47.5]} 10. axb3 {[%clk 0:02:53.1]} 10... Bc5 {[%clk 0:02:47.2]} 11.
Nf3 {[%clk 0:02:52.9]} 11... O-O {[%clk 0:02:10.9]} 12. Bg5 {[%clk 0:02:46.4]}
12... c6 {[%clk 0:02:03.4]} 13. Rf1 {[%clk 0:02:43.3]} 13... Be7 {[%clk
0:01:47]} 14. Nxe5 {[%clk 0:02:40.4]} 14... Nxe4 {[%clk 0:01:35.1]} 15. Bxe7
{[%clk 0:02:29.3]} 15... Qxe7 {[%clk 0:01:32.5]} 16. Nxe4 {[%clk 0:02:05.9]}
16... Qxe5 {[%clk 0:01:30.4]} 17. c3 {[%clk 0:01:55.7]} 17... Ne6 {[%clk
0:01:29.8]} 18. Qe2 {[%clk 0:01:41.4]} 18... Rfe8 {[%clk 0:01:24.8]} 19. O-O-O
{[%clk 0:01:37.7]} 19... Nc5 {[%clk 0:01:15.4]} 20. Kc2 {[%clk 0:01:29.7]} 20...
f5 {[%clk 0:01:12.7]} 21. b4 {[%clk 0:01:13.9]} 21... Nd7 {[%clk 0:01:11]} 22.
Qf3 {[%clk 0:01:07.3]} 22... fxe4 {[%clk 0:01:02]} 23. Qf7+ {[%clk 0:01:07]}
23... Kh8 {[%clk 0:01:02.7]} 24. Qxd7 {[%clk 0:01:07]} 24... Rad8 {[%clk
0:00:58.2]} 25. Qf5 {[%clk 0:00:49.4]} 25... exd3+ {[%clk 0:00:54.8]} 26. Rxd3
{[%clk 0:00:38.5]} 26... Qe2+ {[%clk 0:00:52.6]} 27. Kb3 {[%clk 0:00:33.4]}
27... Qxd3 {[%clk 0:00:50.2]} 28. Qf7 {[%clk 0:00:26.6]} 28... Qd5+ {[%clk
0:00:47.1]} 29. Qxd5 {[%clk 0:00:26.7]} 29... cxd5 {[%clk 0:00:47.5]} 30. Rf7
{[%clk 0:00:27.6]} 30... Rb8 {[%clk 0:00:46.6]} 31. Ka4 {[%clk 0:00:27.2]} 31...
Rf8 {[%clk 0:00:45.8]} 32. Rd7 {[%clk 0:00:26.7]} 32... Rfd8 {[%clk 0:00:45]}
33. Re7 {[%clk 0:00:26.5]} 33... h6 {[%clk 0:00:45.3]} 34. Ka5 {[%clk
0:00:25.1]} 34... d4 {[%clk 0:00:45.5]} 35. cxd4 {[%clk 0:00:24.2]} 35... Rd5+
{[%clk 0:00:45.4]} 36. b5 {[%clk 0:00:23.4]} 36... a6 {[%clk 0:00:45.3]} 37. Kb6
{[%clk 0:00:23.3]} 37... Rxb5+ {[%clk 0:00:45.5]} 38. Ka7 {[%clk 0:00:23.4]}
38... Rd8 {[%clk 0:00:43.9]} 39. b4 {[%clk 0:00:21.8]} 39... Rxb4 {[%clk
0:00:44.2]} 40. d5 {[%clk 0:00:20.3]} 40... Rxd5 {[%clk 0:00:43.7]} 41. g4
{[%clk 0:00:17.3]} 41... Rxg4 {[%clk 0:00:43.5]} 0-1